bitfinex-derivatives/quotes_BTCF0:USTF0_20260314
["timestamp","ask_amount","ask_price","bid_price","bid_amount"]
[1773501332773,0.0014,70719.0,70703.0,0.02692875]
[1773501332984,0.0014,70719.0,70716.0,0.042416]
[1773501334082,0.042409,70729.0,70716.0,0.042416]
[1773501334383,0.0042,70723.0,70716.0,0.042416]
[1773501336789,0.0014,70728.0,70717.0,0.02692875]
[1773501337287,0.0014,70728.0,70717.0,0.06934375]
[1773501344398,0.0014,70728.0,70718.0,0.042415]
[1773501344998,0.20751573,70727.0,70718.0,0.042415]
[1773501345199,0.0014,70728.0,70718.0,0.042415]
[1773501345498,0.20753635,70727.0,70718.0,0.042415]
[1773501345692,0.20753635,70726.0,70718.0,0.042415]
[1773501345885,0.00232426,70726.0,70718.0,0.042415]
[1773501348296,0.01123,70733.0,70712.0,0.02692875]
[1773501348495,0.07391112,70730.0,70715.0,0.02692875]
[1773501348700,0.20755351,70729.0,70720.0,0.042414]
[1773501348900,0.20755351,70728.0,70720.0,0.042414]
[1773501349200,0.20755351,70727.0,70720.0,0.042414]
[1773501349402,0.07391112,70730.0,70720.0,0.042414]
[1773501349593,0.20755956,70729.0,70720.0,0.042414]
[1773501349807,0.20755956,70728.0,70720.0,0.042414]
[1773501349996,0.20755956,70727.0,70720.0,0.042414]
[1773501350199,0.07391112,70730.0,70720.0,0.042414]
[1773501350399,0.2075719,70729.0,70720.0,0.042414]
[1773501350600,0.2075719,70728.0,70720.0,0.042414]
[1773501350806,0.2075719,70727.0,70720.0,0.042414]
[1773501351005,0.042409,70729.0,70717.0,0.042416]
[1773501351304,0.20757198,70728.0,70717.0,0.042416]
[1773501351600,0.20757198,70727.0,70717.0,0.042416]
[1773501351905,0.042409,70729.0,70717.0,0.042416]
[1773501352203,0.20758882,70728.0,70717.0,0.042416]
[1773501352401,0.20758882,70727.0,70717.0,0.042416]
[1773501352596,0.042409,70729.0,70717.0,0.042416]
[1773501352795,0.20761081,70728.0,70717.0,0.042416]
[1773501353000,0.20761081,70727.0,70713.0,0.06856266]
[1773501353207,0.042411,70725.0,70713.0,0.042418]
[1773501353504,0.0014,70724.0,70713.0,0.042418]
[1773501356705,0.07391112,70723.0,70713.0,0.042418]
[1773501358202,0.0014,70724.0,70713.0,0.042418]
[1773501358407,0.20789568,70723.0,70713.0,0.042418]
[1773501358607,0.0014,70724.0,70713.0,0.042418]
[1773501358810,0.20789568,70723.0,70713.0,0.042418]
[1773501359004,0.0014,70724.0,70713.0,0.042418]
[1773501359201,0.20789568,70723.0,70713.0,0.042418]
[1773501359402,0.20789568,70722.0,70713.0,0.042418]
[1773501359712,0.0014,70724.0,70713.0,0.042418]
[1773501359898,0.2079752,70723.0,70713.0,0.042418]
[1773501360208,0.2079752,70722.0,70713.0,0.042418]
[1773501360407,0.2079752,70721.0,70713.0,0.042418]
[1773501360604,0.02638175,70750.0,70710.0,0.07391112]
[1773501360810,0.07391112,70740.0,70722.0,0.06855666]
[1773501360998,0.20947423,70739.0,70722.0,0.06855666]
[1773501361198,0.20807423,70738.0,70722.0,0.06855666]
[1773501361398,0.20807423,70737.0,70722.0,0.06855666]
[1773501361595,0.20807423,70736.0,70722.0,0.06855666]
[1773501361799,0.20807423,70735.0,70722.0,0.06855666]
[1773501361995,0.20807423,70734.0,70722.0,0.06855666]
[1773501362306,0.20947423,70733.0,70722.0,0.06855666]
[1773501362603,0.20807423,70732.0,70722.0,0.06855666]
[1773501362804,0.20807423,70731.0,70722.0,0.06855666]
[1773501363114,0.20807423,70730.0,70722.0,0.06855666]
[1773501363301,0.20807423,70729.0,70722.0,0.02614466]
[1773501363505,0.0014,70728.0,70726.0,0.04241]
[1773501363710,0.042403,70738.0,70726.0,0.04241]
[1773501364012,0.0014,70734.0,70726.0,0.04241]
[1773501364211,0.0014,70733.0,70726.0,0.04241]
[1773501365015,0.042403,70738.0,70715.0,0.01124]
[1773501365016,0.0014,70738.0,70728.0,0.02614466]
[1773501366015,0.0014,70738.0,70730.0,0.042408]
[1773501367509,0.042401,70743.0,70730.0,0.042408]
[1773501367714,0.0014,70742.0,70730.0,0.042408]
[1773501371716,0.0014,70741.0,70730.0,0.042408]
[1773501372116,0.0014,70741.0,70728.0,0.02614466]
[1773501372117,0.0014,70740.0,70731.0,0.042407]
[1773501375819,0.0014,70740.0,70731.0,0.06855166]
[1773501376026,0.0014,70740.0,70729.0,0.042408]
[1773501376620,0.0014,70740.0,70720.0,0.02614466]
[1773501376808,0.06878475,70739.0,70725.0,0.042411]
[1773501377008,0.07383019,70735.0,70721.0,0.042413]
[1773501377214,0.07383019,70730.0,70721.0,0.042413]
[1773501377416,0.07383019,70730.0,70724.0,0.042411]
[1773501377617,0.0014,70734.0,70724.0,0.042411]
[1773501380427,0.0014,70734.0,70719.0,0.02614466]
[1773501380634,0.07383019,70730.0,70715.0,0.01124]
[1773501381138,0.07383019,70725.0,70716.0,0.042416]
[1773501381434,0.0014,70724.0,70713.0,0.042418]
[1773501381930,0.0014,70724.0,70715.0,0.01124]
[1773501382333,0.042413,70722.0,70715.0,0.01124]
[1773501382527,0.02938816,70724.0,70702.0,0.02762544]
[1773501382732,0.10181835,70720.0,70705.0,0.042423]
[1773501383735,0.042416,70718.0,70705.0,0.042423]
[1773501384526,0.0014,70717.0,70705.0,0.042423]
[1773501384726,0.0014,70717.0,70705.0,0.053663]
[1773501385427,0.0014,70717.0,70705.0,0.01124]
[1773501385630,0.02798816,70714.0,70682.0,0.02762544]
[1773501385935,0.042422,70707.0,70693.0,0.04243]
[1773501386139,0.0014,70706.0,70693.0,0.04243]
[1773501386338,0.0014,70705.0,70693.0,0.04243]
[1773501387036,0.0014,70705.0,70693.0,0.05367]
[1773501390541,0.0014,70705.0,70694.0,0.042429]
[1773501391442,0.0014,70704.0,70694.0,0.042429]
[1773501391631,0.0014,70703.0,70694.0,0.042429]
[1773501392239,0.0014,70702.0,70694.0,0.042429]
[1773501392644,0.042422,70707.0,70694.0,0.042429]
[1773501392945,0.0014,70701.0,70694.0,0.042429]
[1773501393145,0.042422,70707.0,70694.0,0.042429]
[1773501393347,0.0014,70706.0,70694.0,0.042429]
[1773501393534,0.0014,70706.0,70693.0,0.01124]
[1773501393535,0.0014,70706.0,70695.0,0.07005344]
[1773501393743,0.0014,70705.0,70695.0,0.07005344]
[1773501394243,0.0014,70704.0,70695.0,0.07005344]
[1773501394747,0.0014,70703.0,70695.0,0.07005344]
[1773501395248,0.0014,70702.0,70695.0,0.07005344]
[1773501395646,0.042421,70709.0,70695.0,0.07005344]
[1773501395850,0.0014,70708.0,70695.0,0.07005344]
[1773501396145,0.042421,70709.0,70695.0,0.07005344]
[1773501396354,0.0014,70707.0,70695.0,0.07005344]
[1773501396850,0.0014,70706.0,70693.0,0.01124]
[1773501397146,0.07383019,70710.0,70693.0,0.01124]
[1773501397350,0.0014,70705.0,70693.0,0.03886544]
[1773501397547,0.0014,70704.0,70696.0,0.042428]
[1773501397750,0.0014,70703.0,70696.0,0.042428]
[1773501397952,0.0014,70702.0,70696.0,0.042428]
[1773501398652,0.0014,70701.0,70697.0,0.02762544]
[1773501398853,0.0014,70700.0,70697.0,0.02762544]
[1773501399239,0.042421,70709.0,70697.0,0.02762544]
[1773501399445,0.0014,70708.0,70697.0,0.02762544]
[1773501399754,0.042421,70709.0,70697.0,0.02762544]
[1773501399950,0.0014,70708.0,70697.0,0.02762544]
[1773501400257,0.042421,70709.0,70697.0,0.02762544]
[1773501400549,0.0014,70708.0,70697.0,0.02762544]
[1773501400754,0.042421,70709.0,70697.0,0.02762544]
[1773501400944,0.0014,70708.0,70697.0,0.02762544]
[1773501401150,0.0014,70708.0,70698.0,0.02762544]
[1773501401361,0.01124,70714.0,70698.0,0.02762544]
[1773501401362,0.0014,70707.0,70698.0,0.02762544]
[1773501401545,0.0014,70706.0,70698.0,0.02762544]
[1773501401746,0.0014,70706.0,70694.0,0.02762544]
[1773501402255,0.0014,70706.0,70703.0,0.02762544]
[1773501402454,0.0014,70707.0,70703.0,0.02762544]
[1773501404656,0.0014,70707.0,70703.0,0.03886544]
[1773501406660,0.0014,70707.0,70703.0,0.08128944]
[1773501407052,0.042417,70715.0,70703.0,0.08128944]
[1773501407358,0.0014,70714.0,70703.0,0.08128944]
[1773501407655,0.0014,70713.0,70703.0,0.08128944]
[1773501408155,0.08507019,70720.0,70703.0,0.03886544]
[1773501408348,0.20281093,70719.0,70704.0,0.02762544]
[1773501408549,0.20281093,70718.0,70704.0,0.02762544]
[1773501408757,0.20141093,70717.0,70704.0,0.02762544]
[1773501409062,0.0014,70718.0,70704.0,0.02762544]
[1773501409063,0.20141093,70716.0,70704.0,0.02762544]
[1773501409255,0.20141093,70715.0,70705.0,0.042423]
[1773501409456,0.0014,70715.0,70705.0,0.042423]
[1773501410061,0.042416,70717.0,70705.0,0.042423]
[1773501410360,0.20307014,70716.0,70705.0,0.042423]
[1773501410559,0.20167014,70715.0,70705.0,0.042423]
[1773501410761,0.20307014,70714.0,70705.0,0.042423]
[1773501410946,0.0014,70714.0,70705.0,0.042423]
[1773501411149,0.20177943,70713.0,70705.0,0.042423]
[1773501411350,0.042416,70717.0,70705.0,0.042423]
[1773501411546,0.20317825,70716.0,70705.0,0.042423]
[1773501411751,0.20317825,70715.0,70705.0,0.042423]
[1773501412055,0.20177825,70714.0,70705.0,0.042423]
[1773501412257,0.20177825,70713.0,70705.0,0.042423]
[1773501412451,0.20177825,70712.0,70705.0,0.042423]
[1773501413360,0.042416,70717.0,70705.0,0.042423]
[1773501413361,0.0014,70711.0,70705.0,0.042423]
[1773501413663,0.0014,70710.0,70705.0,0.042423]
[1773501413857,0.0014,70709.0,70705.0,0.042423]
[1773501414566,0.042416,70717.0,70705.0,0.042423]
[1773501414757,0.20328505,70716.0,70705.0,0.042423]
[1773501415063,0.042416,70717.0,70705.0,0.042423]
[1773501415064,0.20188505,70715.0,70705.0,0.042423]
[1773501415263,0.20328505,70714.0,70705.0,0.042423]
[1773501415464,0.20188505,70713.0,70705.0,0.042423]
[1773501415663,0.20328505,70712.0,70705.0,0.042423]
[1773501415866,0.0014,70712.0,70705.0,0.042423]
[1773501416061,0.0014,70711.0,70705.0,0.042423]
[1773501416453,0.042416,70717.0,70705.0,0.042423]
[1773501416658,0.20330399,70716.0,70705.0,0.042423]
[1773501416963,0.20190399,70715.0,70707.0,0.042421]
[1773501417164,0.053654,70720.0,70704.0,0.02762544]
[1773501417165,0.01124,70720.0,70704.0,0.01277525]
[1773501417466,0.0014,70719.0,70704.0,0.01277525]
[1773501418361,0.0014,70719.0,70711.0,0.042419]
[1773501419867,0.0014,70719.0,70711.0,0.053659]
[1773501420370,0.0014,70721.0,70711.0,0.03907329]
[1773501420668,0.02595138,70726.0,70711.0,0.053659]
[1773501420859,0.02616135,70724.0,70711.0,0.053659]
[1773501421070,0.02616135,70724.0,70712.0,0.042418]
[1773501422265,0.0261565,70721.0,70699.0,0.02783329]
[1773501422463,0.0261565,70721.0,70700.0,0.0014]
[1773501422664,0.0261565,70717.0,70705.0,0.042423]
[1773501422864,0.0014,70716.0,70705.0,0.042423]
[1773501423066,0.02645812,70715.0,70694.0,0.02783329]
[1773501423369,0.06887612,70713.0,70694.0,0.02783329]
[1773501423772,0.02645812,70713.0,70699.0,0.042426]
[1773501425072,0.042419,70712.0,70699.0,0.042426]
[1773501425370,0.02645812,70713.0,70702.0,0.042424]
[1773501429765,0.042418,70714.0,70702.0,0.042424]
[1773501431761,0.0014,70713.0,70702.0,0.042424]
[1773501435381,0.0014,70713.0,70698.0,0.02783329]
[1773501435576,0.01124,70715.0,70698.0,0.02783329]
[1773501435775,0.0014,70714.0,70698.0,0.02783329]
[1773501436978,0.0014,70714.0,70703.0,0.042424]
[1773501438273,0.01124,70715.0,70703.0,0.042424]
[1773501438473,0.0014,70714.0,70703.0,0.042424]
[1773501457498,0.02915039,70728.0,70701.0,0.03058187]
[1773501457689,0.042414,70720.0,70702.0,0.03058187]
[1773501458495,0.0014,70719.0,70702.0,0.01124]
[1773501458687,0.0014,70719.0,70703.0,0.03058187]
[1773501458888,0.042414,70720.0,70703.0,0.03058187]
[1773501459098,0.0014,70718.0,70706.0,0.042422]
[1773501459495,0.0014,70717.0,70706.0,0.042422]
[1773501459796,0.042414,70720.0,70706.0,0.042422]
[1773501460102,0.0014,70719.0,70706.0,0.042422]
[1773501460600,0.042414,70720.0,70706.0,0.042422]
[1773501460800,0.0014,70719.0,70706.0,0.042422]
[1773501461189,0.0014,70718.0,70706.0,0.042422]
[1773501462000,0.042414,70720.0,70706.0,0.042422]
[1773501462200,0.043815,70719.0,70706.0,0.042422]
[1773501462395,0.042415,70719.0,70706.0,0.042422]
[1773501462599,0.0014,70718.0,70706.0,0.042422]
[1773501462898,0.042415,70719.0,70706.0,0.042422]
[1773501463101,0.0014,70718.0,70706.0,0.042422]
[1773501463293,0.0014,70717.0,70706.0,0.042422]
[1773501463699,0.042415,70719.0,70706.0,0.042422]
[1773501463899,0.0014,70718.0,70706.0,0.07262056]
[1773501464699,0.042415,70719.0,70706.0,0.07262056]
[1773501464899,0.0014,70718.0,70706.0,0.07262056]
[1773501465300,0.0014,70717.0,70706.0,0.07262056]
[1773501465705,0.042415,70719.0,70706.0,0.07262056]
[1773501465892,0.0014,70718.0,70706.0,0.07262056]
[1773501466109,0.042415,70719.0,70706.0,0.042422]
[1773501466401,0.0014,70719.0,70704.0,0.042423]
[1773501466702,0.07388115,70720.0,70704.0,0.042423]
[1773501466904,0.0014,70719.0,70704.0,0.042423]
[1773501468005,0.042416,70717.0,70704.0,0.042423]
[1773501468995,0.042416,70717.0,70705.0,0.042423]
[1773501474608,0.01124,70726.0,70707.0,0.02669088]
[1773501474812,0.042412,70724.0,70710.0,0.042419]
[1773501475810,0.042412,70724.0,70710.0,0.053659]
[1773501476211,0.0014,70723.0,70710.0,0.053659]
[1773501479211,0.10251198,70720.0,70710.0,0.01124]
[1773501480007,0.042415,70719.0,70710.0,0.01124]
[1773501488209,0.042413,70721.0,70710.0,0.01124]
[1773501488516,0.0014,70718.0,70710.0,0.01124]
[1773501490418,0.0014,70717.0,70710.0,0.01124]
[1773501500324,0.042413,70721.0,70710.0,0.01124]
[1773501500527,0.0014,70716.0,70710.0,0.01124]
[1773501500727,0.0014,70715.0,70710.0,0.01124]
[1773501501028,0.042413,70721.0,70710.0,0.01124]
[1773501501324,0.0014,70720.0,70710.0,0.01124]
[1773501501924,0.0014,70720.0,70710.0,0.05366]
[1773501502526,0.042412,70723.0,70710.0,0.05366]
[1773501502726,0.0014,70722.0,70710.0,0.05366]
[1773501503028,0.042412,70723.0,70711.0,0.042419]
[1773501503336,0.0014,70722.0,70711.0,0.042419]
[1773501503628,0.0014,70721.0,70711.0,0.042419]
[1773501504026,0.042412,70723.0,70711.0,0.042419]
[1773501504226,0.0014,70722.0,70711.0,0.042419]
[1773501504527,0.042412,70723.0,70711.0,0.042419]
[1773501504730,0.0014,70722.0,70711.0,0.042419]
[1773501505122,0.0014,70721.0,70711.0,0.042419]
[1773501505520,0.042412,70723.0,70711.0,0.042419]
[1773501505719,0.0014,70722.0,70711.0,0.042419]
[1773501506029,0.042412,70723.0,70711.0,0.042419]
[1773501506328,0.0014,70722.0,70711.0,0.042419]
[1773501506524,0.042412,70723.0,70711.0,0.042419]
[1773501506718,0.0014,70722.0,70711.0,0.042419]
[1773501507031,0.042412,70723.0,70711.0,0.042419]
[1773501507227,0.0014,70722.0,70711.0,0.042419]
[1773501507526,0.042412,70723.0,70711.0,0.042419]
[1773501507726,0.0014,70722.0,70711.0,0.042419]
[1773501507925,0.01123,70732.0,70712.0,0.01821239]
[1773501508126,0.043808,70731.0,70719.0,0.042414]
[1773501508325,0.0014,70730.0,70716.0,0.042416]
[1773501508520,0.0014,70729.0,70713.0,0.01799321]
[1773501509426,0.0014,70728.0,70713.0,0.01799321]
[1773501509634,0.042406,70734.0,70713.0,0.01799321]
[1773501509924,0.0014,70733.0,70713.0,0.01799321]
[1773501510128,0.042406,70734.0,70711.0,0.01124]
[1773501510129,0.0014,70732.0,70720.0,0.042413]
[1773501510329,0.0014,70731.0,70720.0,0.042413]
[1773501510727,0.042406,70734.0,70720.0,0.042413]
[1773501511235,0.0014,70733.0,70720.0,0.042413]
[1773501511730,0.0014,70732.0,70720.0,0.042413]
[1773501512520,0.0014,70731.0,70720.0,0.042413]
[1773501513024,0.042406,70733.0,70720.0,0.042413]
[1773501513225,0.0014,70732.0,70720.0,0.042413]
[1773501513535,0.042406,70733.0,70720.0,0.042413]
[1773501513734,0.0014,70732.0,70720.0,0.042413]
[1773501513922,0.0014,70731.0,70720.0,0.042413]
[1773501514121,0.042406,70733.0,70720.0,0.042413]
[1773501514322,0.0014,70732.0,70720.0,0.042413]
[1773501514631,0.042406,70733.0,70720.0,0.042413]
[1773501514932,0.0014,70732.0,70720.0,0.042413]
[1773501515127,0.0014,70731.0,70720.0,0.042413]
[1773501515633,0.0014,70730.0,70720.0,0.042413]
[1773501516333,0.042406,70733.0,70720.0,0.042413]
[1773501516629,0.0014,70729.0,70720.0,0.042413]
[1773501516832,0.042406,70733.0,70720.0,0.042413]
[1773501517022,0.0014,70728.0,70720.0,0.042413]
[1773501517431,0.0014,70727.0,70720.0,0.042413]
[1773501517827,0.042406,70733.0,70720.0,0.042413]
[1773501518332,0.0014,70732.0,70720.0,0.042413]
[1773501518717,0.042403,70739.0,70727.0,0.042409]
[1773501518924,0.0014,70738.0,70727.0,0.042409]
[1773501520829,0.043803,70738.0,70725.0,0.042411]
[1773501521028,0.042404,70736.0,70725.0,0.042411]
[1773501521731,0.043803,70738.0,70725.0,0.042411]
[1773501523133,0.0014,70738.0,70727.0,0.04241]
[1773501524530,0.0014,70737.0,70727.0,0.04241]
[1773501525032,0.0014,70736.0,70727.0,0.04241]
[1773501525424,0.042403,70739.0,70727.0,0.04241]
[1773501525619,0.0014,70738.0,70727.0,0.04241]
[1773501526034,0.0014,70737.0,70727.0,0.04241]
[1773501526433,0.042403,70739.0,70727.0,0.04241]
[1773501526633,0.0014,70738.0,70727.0,0.04241]
[1773501527135,0.0014,70737.0,70727.0,0.04241]
[1773501527436,0.042403,70739.0,70727.0,0.04241]
[1773501527636,0.0014,70738.0,70727.0,0.04241]
[1773501528032,0.0014,70737.0,70727.0,0.04241]
[1773501528534,0.0014,70736.0,70727.0,0.04241]
[1773501528933,0.042403,70739.0,70727.0,0.04241]
[1773501529133,0.0014,70738.0,70727.0,0.04241]
[1773501534645,0.042403,70739.0,70727.0,0.04241]
[1773501534836,0.0014,70738.0,70727.0,0.04241]
[1773501535233,0.042403,70739.0,70727.0,0.04241]
[1773501535533,0.0014,70737.0,70727.0,0.04241]
[1773501535742,0.042403,70739.0,70727.0,0.04241]
[1773501535946,0.0014,70736.0,70727.0,0.04241]
[1773501536446,0.0014,70735.0,70727.0,0.04241]
[1773501536741,0.042403,70739.0,70727.0,0.04241]
[1773501536947,0.0014,70734.0,70727.0,0.04241]
[1773501537247,0.042403,70739.0,70727.0,0.04241]
[1773501537441,0.0014,70733.0,70727.0,0.04241]
[1773501537838,0.042403,70739.0,70727.0,0.04241]
[1773501538333,0.042403,70739.0,70728.0,0.00926695]
[1773501538539,0.0014,70743.0,70732.0,0.042406]
[1773501540854,0.0014,70743.0,70728.0,0.00926695]
[1773501541051,0.0014,70743.0,70734.0,0.042405]
[1773501541353,0.02662094,70751.0,70733.0,0.042406]
[1773501541354,0.042398,70747.0,70733.0,0.042406]
[1773501541652,0.0014,70746.0,70733.0,0.042406]
[1773501542049,0.0014,70746.0,70734.0,0.042405]
[1773501542253,0.0014,70745.0,70726.0,0.1696421]
[1773501542458,0.0014,70745.0,70727.0,0.01108148]
[1773501542753,0.0014,70745.0,70726.0,0.1696421]
[1773501542754,0.0014,70747.0,70741.0,0.042401]
[1773501543055,0.0014,70752.0,70741.0,0.042401]
[1773501543255,0.042394,70754.0,70741.0,0.042401]
[1773501543445,0.0014,70753.0,70741.0,0.042401]
[1773501543946,0.0014,70752.0,70741.0,0.042401]
[1773501544255,0.042395,70753.0,70741.0,0.042401]
[1773501544455,0.0014,70752.0,70741.0,0.042401]
[1773501544953,0.0014,70751.0,70741.0,0.042401]
[1773501545252,0.01123,70759.0,70742.0,0.00976755]
[1773501545554,0.01123,70759.0,70746.0,0.042398]
[1773501545555,0.0014,70758.0,70746.0,0.042398]
[1773501546055,0.01123,70759.0,70746.0,0.042398]
[1773501546257,0.07387081,70760.0,70746.0,0.042398]
[1773501546258,0.11626081,70760.0,70746.0,0.042398]
[1773501546455,0.0014,70759.0,70746.0,0.042398]
[1773501547043,0.11626081,70760.0,70747.0,0.01188973]
[1773501547251,0.0014,70759.0,70750.0,0.042396]
[1773501547756,0.0024,70759.0,70750.0,0.042396]
[1773501548353,0.001,70759.0,70750.0,0.042396]
[1773501548552,0.0014,70758.0,70750.0,0.042396]
[1773501549559,0.01123,70767.0,70747.0,0.01135302]
[1773501549854,0.01123,70767.0,70751.0,0.01228335]
[1773501550060,0.0014,70766.0,70757.0,0.042391]
[1773501550751,0.0014,70766.0,70755.0,0.042393]
[1773501551051,0.042385,70769.0,70756.0,0.01329832]
[1773501551359,0.07387081,70770.0,70748.0,0.01329832]
[1773501551559,0.042386,70767.0,70754.0,0.042393]
[1773501551763,0.0014,70766.0,70754.0,0.042393]
[1773501552559,0.0014,70765.0,70754.0,0.042393]
[1773501552762,0.0014,70765.0,70755.0,0.042392]
[1773501553659,0.0014,70765.0,70754.0,0.01304478]
[1773501553864,0.0014,70765.0,70756.0,0.042392]
[1773501555166,0.0014,70765.0,70755.0,0.012454]
[1773501555667,0.0014,70768.0,70760.0,0.04239]
[1773501555863,0.042382,70774.0,70759.0,0.01162922]
[1773501556068,0.043782,70774.0,70759.0,0.01162922]
[1773501556370,0.0014,70773.0,70759.0,0.01162922]
[1773501556768,0.0014,70772.0,70759.0,0.01162922]
[1773501556968,0.0014,70772.0,70761.0,0.042389]
[1773501557559,0.05361,70777.0,70764.0,0.042387]
[1773501557770,0.0014,70776.0,70764.0,0.042387]
[1773501557967,0.043781,70776.0,70764.0,0.042387]
[1773501558169,0.042384,70771.0,70754.0,0.01108752]
[1773501558364,0.042385,70768.0,70751.0,0.0014]
[1773501558569,0.043785,70768.0,70751.0,0.0014]
[1773501558872,0.043785,70768.0,70751.0,0.01247101]
[1773501560168,0.043785,70768.0,70756.0,0.042392]
[1773501560869,0.042387,70766.0,70747.0,0.01052657]
[1773501561069,0.042387,70766.0,70754.0,0.042393]
[1773501561474,0.0737619,70764.0,70754.0,0.042393]
[1773501562081,0.06911061,70766.0,70754.0,0.042393]
[1773501565275,0.06911061,70766.0,70752.0,0.042395]
[1773501566785,0.06911061,70766.0,70753.0,0.042394]
[1773501567184,0.042387,70766.0,70754.0,0.042393]
[1773501594620,0.0014,70765.0,70754.0,0.042393]
[1773501596019,0.0263779,70763.0,70743.0,0.25425349]
[1773501596211,0.0737619,70764.0,70740.0,0.0060373]
[1773501596212,0.1425298,70760.0,70747.0,0.042398]
[1773501596520,0.1001398,70760.0,70745.0,0.042399]
[1773501596920,0.0014,70759.0,70745.0,0.042399]
[1773501597220,0.0277779,70759.0,70745.0,0.042399]
[1773501597718,0.0277779,70759.0,70739.0,0.0014]
[1773501597719,0.1001398,70755.0,70739.0,0.0014]
[1773501598018,0.0737619,70750.0,70742.0,0.0424]
[1773501598218,0.0687709,70755.0,70742.0,0.0424]
[1773501598724,0.0687709,70755.0,70725.0,0.31724454]
[1773501598725,0.0263779,70751.0,70735.0,0.0014]
[1773501598911,0.0263779,70749.0,70737.0,0.042403]
[1773501599421,0.0014,70748.0,70735.0,0.01642897]
[1773501599619,0.0014,70747.0,70735.0,0.01642897]
[1773501600319,0.0014,70748.0,70735.0,0.01642897]
[1773501602022,0.0014,70748.0,70738.0,0.042403]
[1773501606721,0.043797,70748.0,70736.0,0.042404]
[1773501607123,0.0014,70748.0,70737.0,0.042403]
[1773501619234,0.042397,70749.0,70737.0,0.042403]
[1773501619429,0.0014,70747.0,70737.0,0.042403]
[1773501622430,0.043798,70747.0,70735.0,0.042405]
[1773501633739,0.0014,70747.0,70733.0,0.0075502]
[1773501635934,0.0014,70747.0,70735.0,0.042405]
[1773501638231,0.01123,70757.0,70733.0,0.00341762]
[1773501638426,0.20297618,70756.0,70733.0,0.00341762]
[1773501638636,0.24396918,70755.0,70733.0,0.00341762]
[1773501638833,0.20297618,70754.0,70733.0,0.00341762]
[1773501639033,0.20157618,70753.0,70733.0,0.00341762]
[1773501639241,0.20157618,70752.0,70733.0,0.00341762]
[1773501639437,0.20297618,70751.0,70733.0,0.00341762]
[1773501639643,0.20297618,70751.0,70732.0,0.0014]
[1773501639644,0.0014,70751.0,70742.0,0.0424]
[1773501640238,0.042394,70754.0,70742.0,0.0424]
[1773501640542,0.0014,70751.0,70742.0,0.0424]
[1773501640731,0.042394,70754.0,70742.0,0.0424]
[1773501640930,0.20221737,70753.0,70742.0,0.0424]
[1773501641139,0.20081737,70752.0,70742.0,0.0424]
[1773501641341,0.0014,70751.0,70742.0,0.0424]
[1773501641741,0.0014,70752.0,70742.0,0.0424]
[1773501641941,0.20080675,70751.0,70742.0,0.0424]
[1773501642140,0.042394,70754.0,70742.0,0.0424]
[1773501642341,0.2021977,70753.0,70742.0,0.0424]
[1773501642540,0.2007977,70752.0,70742.0,0.0424]
[1773501642744,0.0014,70751.0,70742.0,0.0424]
[1773501643645,0.042394,70754.0,70742.0,0.0424]
[1773501643850,0.20234523,70753.0,70742.0,0.0424]
[1773501644049,0.20094523,70752.0,70742.0,0.0424]
[1773501644247,0.20234523,70751.0,70742.0,0.0424]
[1773501644445,0.01123,70757.0,70740.0,0.07381767]
[1773501644637,0.20093532,70756.0,70738.0,0.00271278]
[1773501644843,0.20093532,70755.0,70738.0,0.00271278]
[1773501645148,0.20233532,70754.0,70744.0,0.042399]
[1773501645349,0.20093532,70753.0,70744.0,0.042399]
[1773501645641,0.0014,70754.0,70744.0,0.042399]
[1773501645850,0.20231156,70753.0,70744.0,0.042399]
[1773501646036,0.053622,70757.0,70741.0,0.00251138]
[1773501646037,0.01123,70757.0,70741.0,0.00251138]
[1773501646233,0.20090868,70756.0,70741.0,0.00251138]
[1773501646548,0.01123,70757.0,70749.0,0.042396]
[1773501646749,0.0014,70758.0,70749.0,0.042396]
[1773501647140,0.042388,70764.0,70745.0,0.00225931]
[1773501648245,0.0273684,70766.0,70745.0,0.00225931]
[1773501648446,0.042387,70765.0,70751.0,0.042395]
[1773501648747,0.043788,70764.0,70752.0,0.042394]
[1773501649153,0.042388,70764.0,70752.0,0.042394]
[1773501649345,0.0014,70763.0,70752.0,0.042394]
[1773501652952,0.0014,70763.0,70750.0,0.043796]
[1773501654450,0.042388,70764.0,70750.0,0.043796]
[1773501654643,0.043788,70764.0,70750.0,0.043796]
[1773501656344,0.043788,70764.0,70751.0,0.042395]
[1773501659264,0.042388,70763.0,70751.0,0.042395]
[1773501663758,0.042389,70762.0,70750.0,0.0014]
[1773501665355,0.042389,70762.0,70750.0,0.043796]
[1773501671456,0.0014,70766.0,70750.0,0.00176149]
[1773501671652,0.0014,70766.0,70750.0,0.07557916]
[1773501671858,0.042385,70768.0,70751.0,0.00036149]
[1773501672068,0.042385,70768.0,70755.0,0.042393]
[1773501672767,0.01123,70771.0,70753.0,0.00039302]
[1773501674062,0.01263,70771.0,70759.0,0.04239]
[1773501674252,0.01123,70771.0,70759.0,0.04239]
[1773501674659,0.01123,70771.0,70757.0,0.00160826]
[1773501674858,0.0014,70773.0,70757.0,0.00160826]
[1773501675967,0.0007064,70781.0,70757.0,0.0014]
[1773501676265,0.06803176,70775.0,70757.0,0.0014]
[1773501676456,0.06803176,70775.0,70763.0,0.042388]
[1773501676862,0.02565076,70775.0,70764.0,0.042387]
[1773501679370,0.02565076,70775.0,70762.0,0.0014]
[1773501679673,0.042382,70774.0,70754.0,9.499e-05]
[1773501679873,0.042382,70774.0,70755.0,0.0014]
[1773501681172,0.042383,70773.0,70760.0,0.042389]
[1773501681477,0.06817225,70773.0,70760.0,0.042389]
[1773501681678,0.0014,70777.0,70761.0,0.0014]
[1773501681679,0.02578925,70768.0,70761.0,0.0014]
[1773501681874,0.02552259,70765.0,70754.0,0.042393]
[1773501682175,0.02552259,70762.0,70751.0,0.043795]
[1773501682568,0.02552259,70762.0,70752.0,0.0014]